bitfinex/quotes_ETHUSD_20250620
["timestamp","ask_amount","ask_price","bid_price","bid_amount"]
[1750387182787,23.41842754,2520.7,2520.4,3.96755611]
[1750387182950,10.0,2520.6,2520.4,3.96755611]
[1750387183149,8.146,2520.5,2520.4,3.96755611]
[1750387183448,8.2085,2520.5,2520.4,3.96755611]
[1750387184544,10.0625,2520.4,2519.9,0.7524]
[1750387184745,25.08442754,2520.5,2520.1,3.96801609]
[1750387184746,6.48,2520.3,2520.1,3.96801609]
[1750387184947,16.48,2520.2,2520.0,3.96824088]
[1750387185146,16.48,2520.2,2520.1,3.9680965]
[1750387185346,16.5425,2520.2,2520.1,3.9680965]
[1750387186883,16.48,2520.2,2520.1,3.9680965]
[1750387198475,16.5393,2520.2,2520.1,3.9680965]
[1750387199676,16.48,2520.2,2520.1,3.9680965]
[1750387200064,10.0,2520.2,2520.1,4.83697075]
[1750387200382,18.151,2520.2,2520.1,4.89357075]
[1750387200589,18.151,2520.2,2520.1,4.0246965]
[1750387203560,1.68,2520.2,2520.1,4.7853965]
[1750387203769,8.149,2520.2,2520.1,4.82507441]
[1750387204309,1.68,2520.2,2520.1,4.82507441]
[1750387204470,8.15,2520.2,2520.1,4.82507441]
[1750387204670,8.15,2520.2,2520.1,5.70440645]
[1750387205571,8.15,2520.2,2520.1,5.66472854]
[1750387212925,6.47,2520.2,2520.1,5.60812854]
[1750387213126,6.47,2520.2,2520.1,5.66472854]
[1750387215124,6.47,2520.2,2520.1,5.60812854]
[1750387216589,6.47,2520.2,2520.1,3.9680965]
[1750387216794,6.5293,2520.2,2520.1,3.9680965]
[1750387220103,0.8103,2520.5,2520.4,3.96762418]
[1750387220303,1.669,2520.5,2520.4,3.96762418]
[1750387220628,11.669,2520.5,2520.4,3.96762418]
[1750387220792,18.133,2520.5,2520.4,3.96762418]
[1750387221320,26.97116754,2520.5,2519.9,0.7826]
[1750387221522,27.81526754,2520.5,2520.4,3.96762418]
[1750387221929,27.75596754,2520.5,2520.3,3.96769327]
[1750387222100,0.0593,2520.4,2520.3,3.96769327]
[1750387224237,12.4538,2520.5,2520.4,3.96762418]
[1750387224427,18.133,2520.5,2520.4,3.96762418]
[1750387226911,18.132,2520.5,2520.4,3.96762418]
[1750387227539,11.669,2520.5,2520.4,3.96762418]
[1750387227835,18.132,2520.5,2520.4,3.96762418]
[1750387229505,1.669,2520.5,2520.4,4.75672418]
[1750387229705,8.13,2520.5,2520.4,6.12761715]
[1750387229937,8.13,2520.5,2520.4,6.08794561]
[1750387230134,1.669,2520.5,2520.4,6.08794561]
[1750387230401,1.669,2520.5,2520.4,6.0656167]
[1750387230635,2.24830606,2520.7,2520.6,4.74840937]
[1750387230840,8.70930606,2520.7,2520.6,6.24931204]
[1750387231044,8.70930606,2520.7,2520.6,6.20964506]
[1750387231847,8.70930606,2520.7,2520.6,6.24931337]
[1750387232529,2.24830606,2520.7,2520.6,6.24931337]
[1750387232731,8.70930606,2520.7,2520.6,6.24931337]
[1750387233209,2.24830606,2520.7,2520.6,6.18731337]
[1750387233410,2.24830606,2520.7,2520.6,6.24931337]
[1750387234350,2.24830606,2520.7,2520.6,6.20964506]
[1750387234555,2.24830606,2520.7,2520.6,6.24931232]
[1750387236654,2.24830606,2520.7,2520.6,6.64605988]
[1750387240165,2.24830606,2520.7,2520.6,6.60639262]
[1750387240321,2.24830606,2520.7,2520.6,6.54439262]
[1750387240917,2.24830606,2520.7,2520.6,6.58406026]
[1750387241137,2.30980606,2520.7,2520.6,5.36654506]
[1750387241470,2.30980606,2520.7,2520.6,3.96730937]
[1750387242826,2.24830606,2520.7,2520.6,3.96730937]
[1750387243520,2.30980606,2520.7,2520.6,3.96730937]
[1750387243762,16.5061336,2520.7,2520.6,3.96730937]
[1750387243968,18.15674696,2520.7,2520.6,3.96730937]
[1750387248041,11.21831942,2520.7,2520.6,3.96730937]
[1750387257678,12.88631942,2520.7,2520.6,3.96730937]
[1750387261698,29.82474696,2520.7,2520.6,3.96730937]
[1750387262787,22.88631942,2520.7,2520.6,3.96730937]
[1750387266405,21.23570606,2520.7,2520.6,3.96730937]
[1750387269469,20.43780606,2520.7,2520.6,3.96730937]
[1750387269670,20.37630606,2520.7,2520.6,3.96730937]
[1750387270622,13.91630606,2520.7,2520.6,3.96730937]
[1750387270904,20.37630606,2520.7,2520.6,3.96730937]
[1750387273310,20.43470606,2520.7,2520.6,3.96730937]
[1750387274010,20.37630606,2520.7,2520.6,3.96730937]
[1750387276013,20.43470606,2520.7,2520.6,3.96730937]
[1750387277217,30.11044696,2520.7,2520.6,3.96730937]
[1750387277398,30.91394696,2520.7,2520.6,3.96730937]
[1750387278911,30.11044696,2520.7,2520.6,3.96730937]
[1750387279117,20.43470606,2520.7,2520.6,3.96730937]
[1750387280034,18.1864,2520.7,2520.6,3.96730937]
[1750387280834,10.0,2520.6,2520.2,0.817]
[1750387281036,6.459,2520.5,2520.4,3.96762418]
[1750387281335,6.459,2520.5,2520.3,3.96769572]
[1750387281487,13.39742754,2520.5,2520.3,3.96770806]
[1750387281819,0.0584,2520.4,2520.3,3.96770806]
[1750387283235,6.459,2520.5,2520.4,3.96762418]
[1750387285938,1.667,2520.5,2520.4,3.96756102]
[1750387286141,8.126,2520.5,2520.4,3.96756102]
[1750387289645,0.7835,2520.4,2520.2,3.96787575]
[1750387289953,6.459,2520.3,2520.2,3.96793905]
[1750387292242,13.39742754,2520.3,2520.0,3.96812324]
[1750387292448,0.0582,2520.2,2520.0,3.96812324]
[1750387292623,6.459,2520.1,2520.0,3.96812324]
[1750387293418,6.5172,2520.1,2520.0,3.96812324]
[1750387294182,13.45562754,2520.1,2519.9,3.96828961]
[1750387294462,1.7252,2520.0,2519.9,3.96828961]
[1750387294615,1.667,2520.0,2519.9,3.96828961]
[1750387296656,1.667,2520.0,2519.6,4.7525512]
[1750387296827,10.0,2519.8,2519.6,3.96887937]
[1750387297158,16.459,2519.7,2519.6,3.96887937]
[1750387299914,16.459,2519.7,2519.5,3.96895583]
[1750387300113,16.5172,2519.7,2519.5,3.96895583]
[1750387300315,16.5172,2519.7,2519.4,4.75283804]
[1750387300316,4.02727715,2519.5,2518.6,0.0618]
[1750387300563,0.0582,2519.3,2519.1,3.96964325]
[1750387300714,15.06542754,2519.4,2518.7,4.85660213]
[1750387300715,8.60642754,2519.4,2519.2,3.96951413]
[1750387300932,6.459,2519.3,2519.2,3.96935709]
[1750387304091,6.459,2519.3,2519.2,5.63003997]
[1750387304288,6.459,2519.3,2519.2,3.96935709]
[1750387309250,10.0582,2519.6,2519.5,3.96904147]
[1750387309448,18.1862,2519.6,2519.5,3.96904147]
[1750387311512,21.35527279,2519.6,2519.5,3.96904147]
[1750387312011,21.29707279,2519.6,2519.5,3.96904147]
[1750387312312,13.22727279,2519.6,2519.5,3.96904147]
[1750387312488,21.35427279,2519.6,2519.5,3.96904147]
[1750387313811,13.16907279,2519.6,2519.5,3.96904147]
[1750387314012,21.29607279,2519.6,2519.5,3.96904147]
[1750387314183,21.35717279,2519.6,2519.5,3.96904147]
[1750387319438,0.0611,2519.5,2519.4,3.96908668]
[1750387319734,6.99952754,2519.5,2519.4,3.96908668]
[1750387319934,10.11832338,2519.5,2519.4,3.96908668]
[1750387321194,10.11832338,2519.5,2519.3,3.96926183]
[1750387321414,6.5201,2519.4,2519.3,3.96926183]
[1750387323454,6.459,2519.4,2519.3,3.96926183]
[1750387323602,3.11879584,2519.5,2519.4,3.96919901]
[1750387323801,11.24479584,2519.5,2519.4,3.96919901]
[1750387324213,11.30589584,2519.5,2519.4,3.96919901]
[1750387324616,18.24432338,2519.5,2519.4,3.96919901]
[1750387328158,18.18322338,2519.5,2519.4,3.96919901]
[1750387328530,18.24432338,2519.5,2519.4,3.96919901]
[1750387329650,18.24432338,2519.5,2519.3,3.96927323]
[1750387330036,0.0611,2519.4,2519.3,3.96927323]
[1750387330231,0.0611,2519.4,2519.0,0.7988]
[1750387330435,13.39742754,2519.3,2519.2,3.9693854]
[1750387331785,0.0611,2519.2,2519.1,3.9696717]
[1750387331965,13.39742754,2519.3,2519.2,3.96951413]
[1750387332574,15.06442754,2519.3,2519.2,3.96951413]
[1750387332775,15.06442754,2519.3,2519.1,3.96957485]
[1750387332979,15.06442754,2519.3,2519.2,3.96951413]
[1750387333844,15.06442754,2519.3,2519.1,3.96957373]
[1750387334179,15.12552754,2519.3,2519.1,3.96957373]
[1750387334478,15.06442754,2519.3,2519.1,3.96957373]
[1750387334777,15.06442754,2519.3,2519.1,3.96952542]
[1750387334938,15.06442754,2519.3,2518.9,0.057]
[1750387334939,15.12552754,2519.3,2518.9,3.96993592]
[1750387335139,7.70802754,2519.1,2518.4,0.8545]
[1750387335378,6.99952754,2518.9,2518.7,3.97018601]
[1750387335559,6.458,2518.8,2518.7,3.97018601]
[1750387338575,8.125,2518.8,2518.7,3.97018601]
[1750387339755,8.125,2518.8,2518.7,4.83718601]
[1750387341291,1.667,2518.8,2518.7,4.78018601]
[1750387341451,0.0611,2519.1,2519.0,3.96982929]
[1750387341648,8.1851,2519.1,2518.9,3.96995043]
[1750387341875,8.1851,2519.1,2519.0,3.96982929]
[1750387343088,8.1851,2519.1,2518.9,3.96985566]
[1750387343290,6.93842754,2519.0,2518.9,3.96998689]
[1750387343590,8.1818,2519.1,2519.0,3.96982929]
[1750387343591,8.124,2519.1,2519.0,3.96982929]
[1750387343998,8.124,2519.1,2518.7,0.868]
[1750387343999,0.7932,2519.5,2518.8,4.02814451]
[1750387344199,1.666,2519.2,2519.1,3.9696717]
[1750387344360,8.124,2519.2,2519.1,3.9696717]
[1750387347178,15.12022754,2519.2,2519.1,3.9696717]
[1750387349724,8.124,2519.2,2519.1,3.9696717]
[1750387354243,15.12022754,2519.2,2519.1,3.9696717]
[1750387354798,16.63225029,2519.2,2519.1,3.9696717]
[1750387356420,17.45655029,2519.2,2518.9,3.96988864]
[1750387356738,6.99622754,2519.0,2518.9,3.96988864]
[1750387356939,0.0578,2518.9,2518.7,3.97018606]
[1750387357125,13.39542754,2519.0,2518.7,3.97018606]
[1750387357126,13.45322754,2518.8,2518.7,3.97018606]
[1750387357629,13.39542754,2518.8,2518.7,3.97018606]
[1750387358441,6.457,2518.8,2518.7,3.97018606]
[1750387363462,19.48652754,2519.2,2519.1,3.9696717]
[1750387363663,25.94352754,2519.2,2519.1,3.9696717]
[1750387364645,18.122,2519.2,2519.1,3.9696717]
[1750387364855,18.1798,2519.2,2519.1,3.9696717]
[1750387365526,0.0578,2519.1,2519.0,3.96974669]
[1750387368341,25.06042754,2519.2,2519.1,3.9696717]
[1750387368661,25.11822754,2519.2,2519.1,3.9696717]
[1750387369525,18.122,2519.2,2519.1,3.9696717]
[1750387370328,18.1798,2519.2,2519.1,3.9696717]
[1750387371483,11.666,2519.2,2519.1,3.9696717]
[1750387371668,18.122,2519.2,2519.1,3.9696717]
[1750387372760,9.532,2519.9,2519.8,3.96856893]
[1750387372960,17.651,2519.9,2519.8,3.96856893]
[1750387373167,27.651,2519.9,2519.8,3.96856893]
[1750387373338,27.7076,2519.9,2519.8,3.96856893]
[1750387374175,17.7076,2519.9,2519.8,3.96856893]
[1750387374482,27.7076,2519.9,2519.8,3.96856893]
[1750387375376,27.651,2519.9,2519.8,3.96856893]
[1750387375579,21.196,2519.9,2519.8,4.76229725]
[1750387375878,8.119,2519.9,2519.8,5.63649725]
[1750387377110,8.118,2519.9,2519.8,5.63649725]
[1750387377315,16.99502754,2520.5,2520.4,3.96762418]
[1750387377628,25.11302754,2520.5,2520.4,3.96762418]
[1750387377776,25.05642754,2520.5,2520.4,3.96762418]
[1750387377980,25.11302754,2520.5,2520.4,3.96762418]
[1750387379515,18.65902754,2520.5,2520.4,3.96762418]
[1750387379717,25.11302754,2520.5,2520.4,3.96762418]
[1750387381223,25.05642754,2520.5,2520.4,3.96762418]
[1750387381759,25.05542754,2520.5,2520.4,3.96762418]
[1750387383446,18.117,2520.5,2520.4,3.96762418]
[1750387383649,11.664,2520.5,2520.4,3.96762418]
[1750387383821,18.117,2520.5,2520.4,3.96762418]
[1750387384538,8.117,2520.5,2520.4,4.76116156]
[1750387384957,8.1736,2520.5,2520.4,4.76116156]
[1750387385277,8.1736,2520.5,2520.3,3.9677496]
[1750387385278,0.0566,2520.4,2520.2,3.96786995]
[1750387385434,6.99502754,2520.4,2520.3,3.96778161]
[1750387385635,13.44702754,2520.4,2520.3,3.96778161]
[1750387386789,13.39042754,2520.4,2520.2,3.9678665]
[1750387387084,0.0566,2520.3,2520.2,3.9678665]
[1750387390688,0.0566,2520.3,2519.4,0.8362]
[1750387390689,0.0566,2520.2,2519.4,0.8362]
[1750387390979,6.99502754,2520.0,2519.9,3.96841144]
[1750387391175,8.65802754,2520.0,2519.9,3.96841144]
[1750387391689,8.65802754,2520.0,2519.8,3.96853297]
[1750387391690,8.65802754,2520.0,2519.8,3.96843214]
[1750387391893,8.65802754,2520.0,2519.9,3.96841144]
[1750387392194,15.10902754,2520.0,2519.9,3.96841144]
[1750387402600,8.113,2520.0,2519.9,3.96841144]
[1750387405798,1.663,2520.0,2519.9,4.8977058]
[1750387406106,0.0592,2520.5,2520.4,3.96762418]
[1750387406281,8.1712,2520.5,2520.4,3.96762418]
[1750387406478,15.10962754,2520.5,2520.4,3.96762418]
[1750387407188,8.65962754,2520.5,2520.4,3.96762418]
[1750387407407,15.10962754,2520.5,2520.4,3.96762418]
[1750387409805,10.0,2520.4,2520.1,3.96804096]
[1750387410010,6.93842754,2520.2,2520.1,3.96804096]
[1750387410330,13.44662754,2520.2,2520.1,3.96804096]
[1750387410881,13.44662754,2520.2,2520.0,3.96817463]
[1750387411099,0.0592,2520.1,2520.0,3.96817463]
[1750387412208,13.38742754,2520.2,2520.1,3.9680965]
[1750387412365,13.44662754,2520.2,2520.1,3.9680965]
[1750387414017,13.38742754,2520.2,2520.1,3.9680965]
[1750387414320,13.44662754,2520.2,2520.1,3.9680965]
[1750387415485,10.0,2520.1,2519.9,3.9683457]
[1750387415820,24.81490029,2520.2,2519.9,3.9683457]
[1750387415821,15.10862754,2520.0,2519.9,3.9683457]
[1750387416584,15.04942754,2520.0,2519.6,3.96888394]
[1750387416781,0.0592,2519.9,2519.7,3.96859093]
[1750387416984,6.449,2519.8,2519.7,3.96859093]
[1750387427050,8.111,2519.8,2519.7,3.96859093]
[1750387438292,6.99612754,2520.0,2519.9,3.96841144]
[1750387438293,10.0,2520.0,2519.9,3.96841144]
[1750387438487,18.107,2520.0,2519.9,3.96841144]
[1750387438994,25.10312754,2520.0,2519.9,3.96841144]
[1750387441278,0.0577,2519.9,2519.6,3.96877188]
[1750387441479,13.38442754,2519.8,2519.7,3.96863739]
[1750387441785,13.44212754,2519.8,2519.7,3.96863739]
[1750387449586,6.446,2519.8,2519.7,3.96863739]
[1750387450906,6.5037,2519.8,2519.7,3.96863739]
[1750387451332,13.44212754,2519.8,2519.7,3.96863739]
[1750387452203,16.02798029,2519.8,2519.7,3.96872643]
[1750387452601,13.44212754,2519.8,2519.7,3.96872643]
[1750387454021,6.446,2519.8,2519.7,3.96872643]
[1750387457843,16.99612754,2520.0,2519.9,3.96841144]
[1750387458050,25.46932567,2520.0,2519.9,3.96841144]
[1750387459058,25.46933419,2520.0,2519.9,3.96841144]
[1750387460062,25.4693335,2520.0,2519.9,3.96841144]
[1750387460355,25.4693335,2520.0,2519.8,3.96855078]
[1750387460356,10.0,2519.9,2519.8,3.9684739]
[1750387460658,10.0577,2519.9,2519.8,3.9684739]
[1750387461578,10.0,2519.9,2519.8,3.9684739]
[1750387465477,10.0607,2519.9,2519.8,3.9684739]
[1750387470997,10.0,2519.9,2519.8,3.9684739]
[1750387472092,3.96877942,2519.7,2519.1,0.7952]
[1750387472294,3.96877942,2519.7,2518.4,1.658]
[1750387472295,10.77,2519.1,2518.4,0.7952]
[1750387472500,6.99912754,2518.9,2518.8,3.97007971]
[1750387473179,6.93842754,2518.9,2518.8,3.97007971]
[1750387473389,8.1,2519.0,2518.9,3.96998689]
[1750387473894,8.1607,2519.0,2518.9,3.96998689]
[1750387474863,8.1,2519.0,2518.9,3.96998689]
[1750387476294,1.658,2519.0,2518.9,4.89968355]
[1750387476507,11.658,2519.2,2519.1,3.9696717]
[1750387476713,18.1,2519.2,2519.1,3.9696717]
[1750387477314,8.1,2519.2,2519.1,3.9696717]
[1750387478321,8.1,2519.2,2519.1,4.0275717]
[1750387478621,8.1,2519.2,2519.1,4.7925717]
[1750387478819,8.1,2519.2,2519.1,5.75598825]
[1750387479314,1.658,2519.2,2519.1,5.75598825]
[1750387479680,8.1,2519.2,2519.1,5.75598825]
[1750387485126,8.1,2519.2,2519.1,5.69808825]
[1750387485433,0.0607,2519.1,2519.0,3.96982929]
[1750387486751,6.99912754,2519.1,2518.4,5.4885]
[1750387486916,8.1,2519.2,2518.9,3.96989083]
[1750387487090,6.93842754,2519.0,2518.9,3.96989083]
[1750387487291,6.99912754,2519.0,2518.9,3.96989083]
[1750387488420,0.0607,2518.9,2518.8,3.97003662]
[1750387488600,7.2555,2518.9,2518.8,3.97003662]
[1750387489310,6.5027,2518.9,2518.8,3.97003662]
[1750387489510,6.442,2518.9,2518.8,3.97003662]
[1750387491006,6.442,2518.9,2518.8,4.76406903]
[1750387494645,22.82417647,2519.2,2519.1,3.9696717]
[1750387494815,29.26517647,2519.2,2519.1,3.9696717]
[1750387497051,29.26207647,2519.2,2519.1,3.9696717]
[1750387500835,22.32364893,2519.2,2519.1,3.9696717]
[1750387504253,22.26604893,2519.2,2519.1,3.9696717]
[1750387504571,22.32364893,2519.2,2519.1,3.9696717]
[1750387505855,22.69240057,2519.2,2519.1,3.9696717]
[1750387506166,22.32364893,2519.2,2519.1,3.9696717]
[1750387508349,22.26504893,2519.2,2519.1,3.9696717]
[1750387508972,22.32264893,2519.2,2519.1,3.9696717]
[1750387509181,0.8877,2519.1,2519.0,3.96975377]
[1750387510277,0.0576,2519.1,2519.0,3.96975377]
[1750387514292,0.0576,2519.1,2518.5,0.8051]
[1750387514448,6.4976,2519.0,2518.9,3.9698931]
[1750387516163,13.43602754,2519.0,2518.5,0.8051]
[1750387516489,0.0576,2518.8,2518.6,3.97030409]
[1750387516698,0.0576,2518.8,2518.7,3.97030213]
[1750387516848,6.4966,2518.8,2518.7,3.97030213]
[1750387517377,6.4966,2518.8,2518.6,3.97030409]
[1750387517378,13.37742754,2518.8,2518.6,3.97040724]
[1750387517581,0.0576,2518.5,2518.1,3.97115564]
[1750387517761,6.93842754,2518.2,2518.1,3.97124816]
[1750387517951,13.43502754,2518.2,2518.1,3.97124816]
[1750387519554,0.0576,2518.1,2517.9,3.97148281]
[1750387519754,13.43502754,2518.0,2517.9,3.97148281]
[1750387520321,0.0576,2517.9,2517.7,3.97172491]
[1750387520593,6.4966,2517.8,2517.7,3.97172491]
[1750387524997,13.43502754,2517.8,2517.7,3.97172491]
[1750387525379,14.21812754,2517.8,2517.7,3.97172491]
[1750387529211,0.0568,2517.7,2517.6,3.97200311]
[1750387529415,1.7118,2517.7,2517.6,3.97200311]
[1750387530525,0.0568,2517.4,2517.3,3.24104683]
[1750387530816,13.43522754,2517.4,2517.3,3.24104683]
[1750387531022,3.97266804,2517.2,2517.1,0.00357109]
[1750387531322,29.86409558,2517.2,2517.1,0.00357109]
[1750387531477,10.0,2517.2,2517.1,3.97639696]
[1750387531682,19.54,2517.3,2517.2,3.97266804]
[1750387531883,27.635,2517.3,2517.2,3.97266804]
[1750387532604,17.635,2517.3,2517.2,3.97266804]
[1750387533314,17.636,2517.3,2517.2,3.97266804]
[1750387533483,11.195,2517.3,2517.2,3.97266804]
[1750387533679,17.636,2517.3,2517.2,3.97266804]
[1750387533878,17.636,2517.3,2517.2,4.80136804]
[1750387534385,16.93842754,2517.7,2517.6,3.97203686]
[1750387534608,8.096,2517.7,2517.6,3.97203686]
[1750387534916,15.09122754,2517.7,2517.6,3.97203686]
[1750387535483,8.65022754,2517.7,2517.6,3.97203686]
[1750387535822,15.03442754,2517.7,2517.6,3.97203686]
[1750387536280,0.8206,2518.0,2517.9,3.9715636]
[1750387536489,21.00956,2518.0,2517.9,3.9715636]
[1750387536801,10.0568,2517.9,2517.8,3.9716295]
[1750387537131,10.0568,2517.9,2517.2,0.7679]
[1750387537132,0.0568,2517.8,2517.7,3.9718099]
[1750387537326,6.4978,2517.8,2517.7,3.9718099]
[1750387541939,1.655,2518.0,2517.9,3.9715636]
[1750387542399,8.096,2518.0,2517.9,3.9715636]
[1750387543194,1.655,2518.0,2517.9,3.9715636]
[1750387543526,1.655,2518.0,2517.9,5.62119209]
[1750387543728,1.655,2518.4,2518.1,4.03203124]
[1750387543886,6.441,2518.3,2518.2,3.97109046]
[1750387545923,13.37942754,2518.3,2518.0,3.97135344]
[1750387546098,14.19470754,2518.3,2518.1,3.97124816]
[1750387546425,0.0568,2518.2,2518.1,3.97124816]
[1750387547304,13.37942754,2518.3,2518.2,3.97109046]
[1750387547625,13.43622754,2518.3,2518.2,3.97109046]
[1750387548233,3.67801835,2518.6,2518.4,3.97077509]
[1750387548423,3.67801835,2518.6,2518.5,3.97061743]
[1750387548424,13.73481835,2518.6,2518.5,3.97061743]
[1750387548622,22.19750774,2518.6,2518.5,3.97061743]
[1750387549029,15.75750774,2518.6,2518.5,3.97061743]
[1750387549201,22.19750774,2518.6,2518.5,3.97061743]
[1750387549538,15.75750774,2518.6,2518.5,3.97061743]
[1750387549719,22.19750774,2518.6,2518.5,3.97061743]
[1750387549924,15.75750774,2518.6,2518.5,3.97061743]
[1750387550139,15.33301835,2518.6,2518.5,3.97061743]
[1750387550630,21.77301835,2518.6,2518.5,3.97061743]
[1750387551202,11.77301835,2518.6,2518.5,3.97061743]
[1750387552047,5.33301835,2518.6,2518.5,3.97061743]
[1750387552347,11.77301835,2518.6,2518.5,3.97061743]
[1750387552706,5.33301835,2518.6,2518.5,3.97061743]
[1750387552905,11.77301835,2518.6,2518.5,3.97061743]
[1750387555148,11.77201835,2518.6,2518.5,3.97061743]
[1750387556037,5.33301835,2518.6,2518.5,3.97061743]
[1750387556234,11.77201835,2518.6,2518.5,4.84919308]
[1750387556431,11.77201835,2518.6,2518.5,4.91039308]
[1750387556746,5.33301835,2518.6,2518.5,4.91039308]
[1750387556939,11.77201835,2518.6,2518.5,4.91039308]
[1750387557138,11.77201835,2518.6,2518.5,4.84919308]
[1750387559747,18.71044589,2518.6,2518.5,3.97061743]
[1750387560152,11.77201835,2518.6,2518.5,3.97061743]
[1750387560342,18.71044589,2518.6,2518.5,3.97061743]
[1750387561352,11.83061835,2518.6,2518.5,3.97061743]
[1750387561550,18.76904589,2518.6,2518.5,3.97061743]
[1750387562835,12.33004589,2518.6,2518.5,3.97061743]
[1750387563042,11.83061835,2518.6,2518.5,3.97061743]
[1750387563214,11.77201835,2518.6,2518.5,3.97061743]
[1750387566920,11.77101835,2518.6,2518.5,3.97061743]
[1750387567620,0.0586,2520.4,2518.9,0.55]
[1750387567882,0.8046,2520.5,2519.2,0.8108]
[1750387567883,0.0586,2520.0,2519.2,0.8108]
[1750387568023,6.93842754,2519.6,2519.2,0.8108]
[1750387568224,6.99702754,2519.5,2519.4,3.96919901]
[1750387568739,15.14902754,2519.5,2519.4,3.96919901]
[1750387568949,16.74714029,2519.5,2519.4,3.96919901]
[1750387570460,16.74714029,2519.5,2519.3,3.96922158]
[1750387570461,0.0586,2519.4,2519.3,3.96922158]
[1750387571342,1.654,2519.5,2519.4,3.96919901]
[1750387571525,8.15,2519.5,2519.4,3.96919901]
[1750387571725,8.2086,2519.5,2519.4,3.96919901]
[1750387572219,0.8143,2519.9,2519.4,3.96919901]
[1750387572446,10.8729,2519.9,2519.8,3.96856893]
[1750387572645,20.80303275,2519.9,2519.8,3.96856893]
[1750387573037,20.80603275,2519.9,2519.8,3.96856893]
[1750387573921,10.74743275,2519.9,2519.8,3.96856893]
[1750387574248,8.2096,2519.9,2519.8,3.96856893]
[1750387575218,8.149,2519.9,2519.8,3.96856893]
[1750387576122,1.654,2519.9,2519.8,3.96856893]
[1750387576328,8.149,2519.9,2519.8,3.96856893]
[1750387576657,8.148,2519.9,2519.8,3.96856893]
[1750387577223,7.148,2519.9,2519.8,3.96856893]
[1750387577650,7.149,2519.9,2519.8,3.96856893]
[1750387578246,7.149,2519.9,2519.8,4.02976893]
[1750387578559,0.8656,2520.3,2520.2,3.96793905]
[1750387578763,1.653,2520.3,2520.2,3.96793905]
[1750387579362,8.146,2520.3,2520.2,3.96793905]
[1750387579567,8.2046,2520.3,2520.2,3.96793905]
[1750387580564,10.67280275,2520.3,2519.5,4.03011729]
[1750387580727,6.99702754,2520.2,2520.1,3.96801895]
[1750387581034,6.93842754,2520.2,2520.1,3.96801895]
[1750387581362,1.653,2520.8,2520.7,3.96715198]
[1750387581567,8.161,2520.8,2520.7,3.96715198]
[1750387583054,8.2306,2520.8,2520.7,3.96715198]
[1750387583258,15.16902754,2520.8,2520.7,3.96715198]
[1750387584128,0.802,2520.9,2520.8,3.9669946]
[1750387584349,9.0326,2520.9,2520.8,3.9669946]
[1750387585667,1.7116,2520.9,2520.8,3.9669946]
[1750387585872,8.2296,2520.9,2520.8,3.9669946]
[1750387590279,8.171,2520.9,2520.7,3.96714301]
[1750387590483,6.99702754,2520.8,2520.7,3.96714301]
[1750387591245,0.0586,2520.8,2520.7,3.96714301]
[1750387591578,6.99702754,2520.8,2520.7,3.96714301]
[1750387594784,0.7522,2520.7,2520.5,3.96734639]
[1750387594969,13.50002754,2520.6,2520.5,3.96734639]
[1750387595301,13.50002754,2520.6,2519.9,0.0612]
[1750387595302,0.0586,2520.5,2520.3,3.96769982]
[1750387595447,15.14242754,2520.4,2520.3,3.96769982]
[1750387595784,15.20102754,2520.4,2520.3,3.96769982]
[1750387597192,0.8121,2521.0,2520.4,3.96762418]
[1750387597379,18.223,2520.9,2520.8,3.9669946]
[1750387597768,11.699,2520.9,2520.8,3.9669946]
[1750387597970,8.223,2520.9,2520.8,3.9669946]
[1750387598609,1.699,2520.9,2520.8,3.9669946]
[1750387598774,8.223,2520.9,2520.8,3.9669946]
[1750387601001,8.2816,2520.9,2520.8,3.9669946]
[1750387602923,8.2756,2520.9,2520.8,3.9669946]
[1750387603220,8.2756,2520.9,2520.3,3.96773502]
[1750387603221,0.0586,2520.6,2520.3,3.96773502]
[1750387603400,6.519,2520.5,2520.4,3.96751249]
[1750387603718,13.51602754,2520.5,2520.4,3.96751249]
[1750387605693,13.45742754,2520.5,2520.0,0.7614]
[1750387605887,0.0586,2520.3,2520.2,3.96786789]
[1750387606088,6.5756,2520.3,2520.2,3.96786789]
[1750387611026,6.5756,2520.3,2520.1,3.96806935]
[1750387611027,0.0586,2520.2,2520.0,3.96812823]
[1750387611189,14.27622754,2520.3,2520.0,3.96812823]
[1750387611190,13.44942754,2520.1,2520.0,3.96812823]
[1750387611525,13.50802754,2520.1,2520.0,3.96812823]
[1750387611729,0.0586,2520.0,2519.7,3.96858979]
[1750387611911,15.20702754,2519.9,2519.8,3.96854441]
[1750387612112,15.20702754,2519.9,2519.6,3.96882504]
[1750387612312,8.21,2519.9,2519.8,3.96856893]
[1750387614127,8.21,2519.9,2519.7,3.96865842]
[1750387614330,8.2689,2519.9,2519.7,3.96865842]
[1750387614631,8.2689,2519.9,2519.6,3.96879945]
[1750387614833,6.93842754,2519.8,2519.5,3.96891707]
[1750387615131,0.0589,2519.5,2519.3,3.96928332]
[1750387615434,6.93842754,2519.6,2519.3,3.96928332]
[1750387615435,8.2659,2519.4,2519.3,3.96928332]
[1750387616228,8.2659,2519.4,2519.0,3.96980161]
[1750387616429,0.0589,2519.3,2519.2,3.96951413]
[1750387617536,0.0589,2519.3,2519.1,3.96958033]
[1750387617848,6.509,2519.2,2519.1,3.96958033]
[1750387624953,0.803,2519.6,2519.0,3.96969053]
[1750387625159,8.197,2519.5,2519.4,3.96919901]
[1750387625665,8.2559,2519.5,2519.4,3.96919901]
[1750387628873,8.2539,2519.5,2519.4,3.96919901]
[1750387629079,8.195,2519.5,2519.4,3.96919901]
[1750387629377,8.2539,2519.5,2519.4,3.96919901]
[1750387630106,0.0589,2519.3,2519.1,3.96956416]
[1750387630284,6.5539,2519.2,2519.1,3.96956416]
[1750387631090,6.495,2519.2,2518.9,3.96984203]
[1750387631398,6.495,2519.2,2517.9,0.55]
[1750387631399,0.0589,2518.8,2518.2,3.97094125]
[1750387631549,6.93842754,2518.3,2518.1,3.97117586]
[1750387631754,0.0589,2518.1,2518.0,3.97140587]
[1750387632776,8.2529,2518.2,2518.1,3.97124816]
[1750387632995,8.194,2518.2,2518.1,3.97124816]
[1750387636087,8.194,2518.2,2518.0,3.97136681]
[1750387636287,0.0589,2518.1,2518.0,3.97136681]
[1750387637285,0.0589,2518.0,2517.8,3.9716029]
[1750387637487,6.496,2517.9,2517.8,3.97172134]
[1750387639067,1.696,2518.2,2518.1,3.97124816]